[Event "*** MasterClass Titled Tuesday Blitz"]
[Site "Chess.com"]
[Date "2017.09.05"]
[Round "3"]
[White "dogeandpika4life"]
[Black "DiogenesSinopeus"]
[Result "0-1"]
[WhiteElo "2292"]
[BlackElo "2392"]
[TimeControl "180+2"]
[EndTime "13:43:06 PDT"]
[Termination "DiogenesSinopeus won by resignation"]

1. a3 {[%clk 0:03:02]} 1... Nf6 {[%clk 0:02:58.5]} 2. b4 {[%clk 0:03:00.2]} 2...
a5 {[%clk 0:02:50.5]} 3. b5 {[%clk 0:02:59.9]} 3... d5 {[%clk 0:02:49.4]} 4. d4
{[%clk 0:02:58.6]} 4... Bf5 {[%clk 0:02:47.2]} 5. e3 {[%clk 0:02:58.5]} 5... e6
{[%clk 0:02:47.7]} 6. c4 {[%clk 0:02:57.4]} 6... Be7 {[%clk 0:02:43.3]} 7. Nc3
{[%clk 0:02:57]} 7... O-O {[%clk 0:02:42.7]} 8. Nf3 {[%clk 0:02:57.9]} 8... h6
{[%clk 0:02:41.6]} 9. c5 {[%clk 0:02:49.4]} 9... c6 {[%clk 0:02:30.5]} 10. Na4
{[%clk 0:02:43.2]} 10... Nbd7 {[%clk 0:02:30.9]} 11. Be2 {[%clk 0:02:34.6]}
11... Ne4 {[%clk 0:02:26.3]} 12. O-O {[%clk 0:02:32]} 12... Bf6 {[%clk
0:02:27.7]} 13. Bb2 {[%clk 0:02:28.2]} 13... Qe7 {[%clk 0:02:29]} 14. Rc1 {[%clk
0:02:27.4]} 14... e5 {[%clk 0:02:29.5]} 15. h3 {[%clk 0:02:14.4]} 15... Rfe8
{[%clk 0:02:21.6]} 16. Qb3 {[%clk 0:02:10.8]} 16... Rad8 {[%clk 0:02:15.4]} 17.
Rfd1 {[%clk 0:02:10.6]} 17... g5 {[%clk 0:01:52.8]} 18. dxe5 {[%clk 0:02:03.8]}
18... Nxe5 {[%clk 0:01:52.9]} 19. Nd4 {[%clk 0:02:02.9]} 19... Bg6 {[%clk
0:01:46.6]} 20. Nb6 {[%clk 0:02:00.7]} 20... h5 {[%clk 0:01:40.5]} 21. Na4
{[%clk 0:01:56.3]} 21... g4 {[%clk 0:01:38.5]} 22. hxg4 {[%clk 0:01:55.2]} 22...
hxg4 {[%clk 0:01:39.2]} 23. bxc6 {[%clk 0:01:54.7]} 23... bxc6 {[%clk
0:01:39.7]} 24. Ba1 {[%clk 0:01:45]} 24... Rb8 {[%clk 0:01:38.8]} 25. Qa2 {[%clk
0:01:45.1]} 25... g3 {[%clk 0:01:30.6]} 26. f4 {[%clk 0:01:40.5]} 26... Nf2
{[%clk 0:01:24.5]} 27. Rf1 {[%clk 0:01:25.1]} 27... Neg4 {[%clk 0:01:22.2]} 28.
Bxg4 {[%clk 0:01:22.2]} 28... Nxg4 {[%clk 0:01:20.6]} 29. Rf3 {[%clk 0:01:23.6]}
29... Qd7 {[%clk 0:00:45.4]} 30. Qd2 {[%clk 0:01:09.7]} 30... Bh4 {[%clk
0:00:40.3]} 31. Nb6 {[%clk 0:01:06.7]} 31... Qc7 {[%clk 0:00:36.2]} 32. f5
{[%clk 0:01:01.5]} 32... Bh5 {[%clk 0:00:37.5]} 33. Rf4 {[%clk 0:00:55.7]} 33...
Re4 {[%clk 0:00:36.9]} 34. Rxe4 {[%clk 0:00:56.1]} 34... dxe4 {[%clk 0:00:38.8]}
35. Ne2 {[%clk 0:00:53]} 35... Bf6 {[%clk 0:00:36.3]} 36. Nf4 {[%clk 0:00:44.2]}
36... Bxa1 {[%clk 0:00:35.9]} 37. Rxa1 {[%clk 0:00:46.1]} 37... Qe5 {[%clk
0:00:36.2]} 38. Rd1 {[%clk 0:00:45]} 38... Nf6 {[%clk 0:00:36.4]} 39. Nxh5
{[%clk 0:00:34.6]} 39... Nxh5 {[%clk 0:00:38.3]} 40. Qd6 {[%clk 0:00:35.4]}
40... Re8 {[%clk 0:00:29.6]} 41. Nd7 {[%clk 0:00:32.4]} 41... Qc3 {[%clk
0:00:11.6]} 42. Qd4 {[%clk 0:00:21.5]} 42... Qc2 {[%clk 0:00:12.7]} 43. Rf1
{[%clk 0:00:21.1]} 43... Qd3 {[%clk 0:00:11.6]} 44. Nf6+ {[%clk 0:00:19.1]}
44... Nxf6 {[%clk 0:00:12.5]} 45. Qxf6 {[%clk 0:00:21]} 45... Qxe3+ {[%clk
0:00:13.8]} 46. Kh1 {[%clk 0:00:22.6]} 46... Qe2 {[%clk 0:00:11.6]} 47. Qg5+
{[%clk 0:00:19.9]} 47... Kh7 {[%clk 0:00:13.1]} 48. Qh5+ {[%clk 0:00:20.8]}
48... Qxh5+ {[%clk 0:00:13.6]} 0-1

[Event "*** MasterClass Titled Tuesday Blitz"]
[Site "Chess.com"]
[Date "2017.09.05"]
[Round "3"]
[White "Rokis13"]
[Black "Jahonas"]
[Result "1-0"]
[WhiteElo "2349"]
[BlackElo "2204"]
[TimeControl "180+2"]
[EndTime "13:43:22 PDT"]
[Termination "Rokis13 won by checkmate"]

1. e4 {[%clk 0:02:48.3]} 1... c6 {[%clk 0:03:00.2]} 2. Nc3 {[%clk 0:02:45.5]}
2... d5 {[%clk 0:03:00.7]} 3. d4 {[%clk 0:02:48.2]} 3... dxe4 {[%clk 0:03:01.4]}
4. Nxe4 {[%clk 0:02:50.1]} 4... Nf6 {[%clk 0:03:01.4]} 5. Nxf6+ {[%clk 0:02:51]}
5... exf6 {[%clk 0:03:02.8]} 6. c3 {[%clk 0:02:46.9]} 6... Bd6 {[%clk
0:03:03.6]} 7. Bd3 {[%clk 0:02:48.2]} 7... O-O {[%clk 0:03:04.2]} 8. Ne2 {[%clk
0:02:49.2]} 8... Bg4 {[%clk 0:03:02.1]} 9. O-O {[%clk 0:02:46]} 9... Qc7 {[%clk
0:03:02.1]} 10. h3 {[%clk 0:02:45.7]} 10... Bh5 {[%clk 0:03:01.6]} 11. Qc2
{[%clk 0:02:47]} 11... Bg6 {[%clk 0:03:02.5]} 12. Re1 {[%clk 0:02:46.6]} 12...
Nd7 {[%clk 0:03:03.2]} 13. Bxg6 {[%clk 0:02:45.2]} 13... hxg6 {[%clk 0:03:03.6]}
14. Be3 {[%clk 0:02:44.6]} 14... Rfe8 {[%clk 0:03:04.2]} 15. Nc1 {[%clk
0:02:45.6]} 15... f5 {[%clk 0:03:04.3]} 16. Nd3 {[%clk 0:02:45.2]} 16... Nf6
{[%clk 0:03:02.3]} 17. c4 {[%clk 0:02:28.7]} 17... f4 {[%clk 0:02:50.7]} 18. Bd2
{[%clk 0:02:29.8]} 18... f3 {[%clk 0:02:50.6]} 19. g4 {[%clk 0:02:28.6]} 19...
Qd7 {[%clk 0:02:38.3]} 20. Qd1 {[%clk 0:02:22.6]} 20... Nxg4 {[%clk 0:02:35.5]}
21. Qxf3 {[%clk 0:02:24.4]} 21... Nh2 {[%clk 0:02:24.7]} 22. Qg2 {[%clk
0:02:24]} 22... Qf5 {[%clk 0:02:22.2]} 23. Nf4 {[%clk 0:01:41.6]} 23... Bxf4
{[%clk 0:02:12.9]} 24. Bxf4 {[%clk 0:01:43.5]} 24... Qxf4 {[%clk 0:02:05.5]} 25.
Qxh2 {[%clk 0:01:44.7]} 25... Qxd4 {[%clk 0:02:03.1]} 26. b3 {[%clk 0:01:44.9]}
26... Qc3 {[%clk 0:01:56.1]} 27. Kf1 {[%clk 0:01:44.1]} 27... Qd3+ {[%clk
0:01:45.3]} 28. Kg1 {[%clk 0:01:44.7]} 28... Qc3 {[%clk 0:01:28.8]} 29. Kf1
{[%clk 0:01:41]} 29... Qf3 {[%clk 0:01:14.9]} 30. Rad1 {[%clk 0:01:36.9]} 30...
a5 {[%clk 0:01:08.8]} 31. Qg3 {[%clk 0:01:30]} 31... Qh1+ {[%clk 0:01:02.9]} 32.
Qg1 {[%clk 0:01:28.1]} 32... Qxh3+ {[%clk 0:01:03.3]} 33. Qg2 {[%clk 0:01:29.6]}
33... Qxg2+ {[%clk 0:01:02.4]} 34. Kxg2 {[%clk 0:01:31.2]} 34... Rxe1 {[%clk
0:01:03.4]} 35. Rxe1 {[%clk 0:01:31.4]} 35... Kf8 {[%clk 0:01:04.3]} 36. Rd1
{[%clk 0:01:30.8]} 36... Ke7 {[%clk 0:01:05]} 37. Re1+ {[%clk 0:01:32.7]} 37...
Kd7 {[%clk 0:01:06]} 38. Rd1+ {[%clk 0:01:34.1]} 38... Kc7 {[%clk 0:01:00.6]}
39. Re1 {[%clk 0:01:33.6]} 39... Rd8 {[%clk 0:01:01.5]} 40. Re5 {[%clk
0:01:34.9]} 40... b6 {[%clk 0:01:00.6]} 41. Kg3 {[%clk 0:01:28.8]} 41... f6
{[%clk 0:00:58.1]} 42. Re7+ {[%clk 0:01:27.1]} 42... Rd7 {[%clk 0:00:58.8]} 43.
Re6 {[%clk 0:01:28.9]} 43... Kb7 {[%clk 0:00:42.7]} 44. f3 {[%clk 0:01:29.5]}
44... Rc7 {[%clk 0:00:35.1]} 45. Kg4 {[%clk 0:01:22]} 45... Ka6 {[%clk
0:00:31.3]} 46. f4 {[%clk 0:01:20.4]} 46... b5 {[%clk 0:00:31]} 47. Kf3 {[%clk
0:01:17.2]} 47... bxc4 {[%clk 0:00:31.7]} 48. bxc4 {[%clk 0:01:18.8]} 48... Kb6
{[%clk 0:00:32.5]} 49. Ke3 {[%clk 0:01:19.9]} 49... Kc5 {[%clk 0:00:32.9]} 50.
Kd3 {[%clk 0:01:17.8]} 50... Kb4 {[%clk 0:00:33.3]} 51. a3+ {[%clk 0:01:09.3]}
51... Kxa3 {[%clk 0:00:30.3]} 52. Kc3 {[%clk 0:01:11.2]} 52... Ka4 {[%clk
0:00:19]} 53. Re1 {[%clk 0:01:09.4]} 53... Rb7 {[%clk 0:00:11.5]} 54. Ra1#
{[%clk 0:01:06.4]} 1-0

[Event "*** MasterClass Titled Tuesday Blitz"]
[Site "Chess.com"]
[Date "2017.09.05"]
[Round "3"]
[White "sergiochess83"]
[Black "GMKrikor"]
[Result "1-0"]
[WhiteElo "2759"]
[BlackElo "2571"]
[TimeControl "180+2"]
[EndTime "13:43:29 PDT"]
[Termination "sergiochess83 won on time"]

1. e4 {[%clk 0:03:01.9]} 1... e5 {[%clk 0:03:00.5]} 2. Nf3 {[%clk 0:03:02.6]}
2... Nc6 {[%clk 0:03:01.6]} 3. Bc4 {[%clk 0:03:03.7]} 3... Bc5 {[%clk
0:03:01.9]} 4. O-O {[%clk 0:03:04.3]} 4... Nf6 {[%clk 0:03:03]} 5. d3 {[%clk
0:03:05.4]} 5... d6 {[%clk 0:03:02.8]} 6. c3 {[%clk 0:03:06.1]} 6... a6 {[%clk
0:03:03.5]} 7. a4 {[%clk 0:03:06.1]} 7... h6 {[%clk 0:03:00.2]} 8. Re1 {[%clk
0:03:05.1]} 8... O-O {[%clk 0:02:57.4]} 9. h3 {[%clk 0:03:05.8]} 9... Ba7 {[%clk
0:02:48.1]} 10. Nbd2 {[%clk 0:03:06.2]} 10... Re8 {[%clk 0:02:43.1]} 11. b4
{[%clk 0:03:04.5]} 11... Be6 {[%clk 0:02:32.9]} 12. Bxe6 {[%clk 0:03:05]} 12...
Rxe6 {[%clk 0:02:33.7]} 13. Qc2 {[%clk 0:03:06.1]} 13... Qd7 {[%clk 0:02:06.4]}
14. Nf1 {[%clk 0:02:50]} 14... d5 {[%clk 0:01:53.2]} 15. Ng3 {[%clk 0:02:50.1]}
15... dxe4 {[%clk 0:01:29.9]} 16. dxe4 {[%clk 0:02:50.5]} 16... Rd8 {[%clk
0:01:30.9]} 17. Be3 {[%clk 0:02:30.6]} 17... Bxe3 {[%clk 0:01:29.3]} 18. Rxe3
{[%clk 0:02:32.5]} 18... Rd6 {[%clk 0:01:17.1]} 19. b5 {[%clk 0:02:21.8]} 19...
axb5 {[%clk 0:01:14.3]} 20. axb5 {[%clk 0:02:22.7]} 20... Rd1+ {[%clk 0:01:16]}
21. Rxd1 {[%clk 0:02:07.9]} 21... Qxd1+ {[%clk 0:01:16.7]} 22. Qxd1 {[%clk
0:02:09.8]} 22... Rxd1+ {[%clk 0:01:18.2]} 23. Kh2 {[%clk 0:02:11.7]} 23... Na7
{[%clk 0:01:15]} 24. c4 {[%clk 0:02:12.8]} 24... Nd7 {[%clk 0:00:28.7]} 25. Ra3
{[%clk 0:02:11.8]} 25... Nc8 {[%clk 0:00:30.2]} 26. Ra8 {[%clk 0:02:09.4]} 26...
Nb6 {[%clk 0:00:31]} 27. Rb8 {[%clk 0:02:10.4]} 27... Rd8 {[%clk 0:00:32.8]} 28.
Nxe5 {[%clk 0:01:51.1]} 28... f6 {[%clk 0:00:33.8]} 29. c5 {[%clk 0:01:48.9]}
29... Na4 {[%clk 0:00:25.1]} 30. c6 {[%clk 0:01:44.1]} 30... b6 {[%clk
0:00:17.1]} 31. Nf3 {[%clk 0:01:05.1]} 31... Nc3 {[%clk 0:00:18.1]} 32. Nd4
{[%clk 0:01:05.8]} 32... Kf7 {[%clk 0:00:18.2]} 33. Rb7 {[%clk 0:00:57.4]} 33...
Rxd4 {[%clk 0:00:19.4]} 34. Rxc7+ {[%clk 0:00:58.4]} 34... Ne7 {[%clk
0:00:15.4]} 35. Rxe7+ {[%clk 0:00:43.3]} 35... Kxe7 {[%clk 0:00:16.3]} 36. Nf5+
{[%clk 0:00:44.4]} 36... Kd8 {[%clk 0:00:15.6]} 37. Nxd4 {[%clk 0:00:44.7]}
37... Nxe4 {[%clk 0:00:15]} 38. f3 {[%clk 0:00:41.5]} 38... Nc3 {[%clk
0:00:12.1]} 39. Kg3 {[%clk 0:00:37.5]} 39... Ke7 {[%clk 0:00:13.6]} 40. Kf4
{[%clk 0:00:36.2]} 40... g6 {[%clk 0:00:15.2]} 41. h4 {[%clk 0:00:36.3]} 41...
h5 {[%clk 0:00:16.2]} 42. g4 {[%clk 0:00:36.8]} 42... Kd6 {[%clk 0:00:13.7]} 43.
gxh5 {[%clk 0:00:37.1]} 43... gxh5 {[%clk 0:00:15.4]} 44. Kf5 {[%clk 0:00:37.6]}
44... Nd5 {[%clk 0:00:13.9]} 45. Kg6 {[%clk 0:00:34.7]} 45... Kc5 {[%clk
0:00:15]} 46. Kxh5 {[%clk 0:00:29]} 46... Kxd4 {[%clk 0:00:13.6]} 47. Kg6 {[%clk
0:00:29.8]} 47... Kc5 {[%clk 0:00:13.3]} 48. h5 {[%clk 0:00:30.3]} 48... Kxb5
{[%clk 0:00:11.7]} 49. h6 {[%clk 0:00:31]} 49... Nf4+ {[%clk 0:00:05.1]} 50. Kf7
{[%clk 0:00:27.9]} 1-0

[Event "*** MasterClass Titled Tuesday Blitz"]
[Site "Chess.com"]
[Date "2017.09.05"]
[Round "3"]
[White "PowerThinking2650"]
[Black "Bad4life"]
[Result "0-1"]
[WhiteElo "2204"]
[BlackElo "2168"]
[TimeControl "180+2"]
[EndTime "13:43:40 PDT"]
[Termination "Bad4life won by resignation"]

1. e4 {[%clk 0:03:01.9]} 1... d6 {[%clk 0:03:00]} 2. d4 {[%clk 0:03:02.2]} 2...
Nf6 {[%clk 0:03:00.2]} 3. Nc3 {[%clk 0:03:00.3]} 3... g6 {[%clk 0:03:02.4]} 4.
Bc4 {[%clk 0:03:01.2]} 4... Bg7 {[%clk 0:03:03.1]} 5. Qe2 {[%clk 0:03:02.7]}
5... O-O {[%clk 0:03:03.1]} 6. e5 {[%clk 0:03:03.1]} 6... dxe5 {[%clk
0:02:47.2]} 7. dxe5 {[%clk 0:03:02.6]} 7... Ng4 {[%clk 0:02:43]} 8. Nf3 {[%clk
0:02:52.4]} 8... Nc6 {[%clk 0:02:42.1]} 9. Bf4 {[%clk 0:02:34.7]} 9... Nd4
{[%clk 0:02:37.6]} 10. Nxd4 {[%clk 0:02:34.2]} 10... Qxd4 {[%clk 0:02:39.5]} 11.
Nd5 {[%clk 0:02:09.6]} 11... Nxe5 {[%clk 0:02:27.7]} 12. Nxe7+ {[%clk
0:02:03.3]} 12... Kh8 {[%clk 0:02:28.3]} 13. Bxe5 {[%clk 0:01:41.4]} 13... Bxe5
{[%clk 0:02:23]} 14. c3 {[%clk 0:01:41.8]} 14... Qf4 {[%clk 0:02:07.8]} 15. g3
{[%clk 0:01:35.4]} 15... Qf6 {[%clk 0:02:05.2]} 16. Nxc8 {[%clk 0:01:25.4]}
16... Bxc3+ {[%clk 0:01:30.2]} 17. Kf1 {[%clk 0:01:26]} 17... Bxb2 {[%clk
0:01:16.8]} 18. Rb1 {[%clk 0:01:21.8]} 18... Ba3 {[%clk 0:00:39.6]} 19. Rb3
{[%clk 0:01:13.7]} 19... Bc5 {[%clk 0:00:29.7]} 20. Rf3 {[%clk 0:01:10.7]} 20...
Qd8 {[%clk 0:00:15.6]} 21. Qe5+ {[%clk 0:01:10.3]} 21... f6 {[%clk 0:00:14.4]}
22. Qxc5 {[%clk 0:01:10.7]} 22... Rxc8 {[%clk 0:00:14.8]} 23. Kg2 {[%clk
0:01:10.4]} 23... b6 {[%clk 0:00:16]} 24. Qc6 {[%clk 0:01:11]} 24... Qe7 {[%clk
0:00:16.3]} 25. Rd1 {[%clk 0:01:10.1]} 25... Rcd8 {[%clk 0:00:13.8]} 26. Rxd8
{[%clk 0:01:07.9]} 26... Qxd8 {[%clk 0:00:15]} 27. Rd3 {[%clk 0:01:06.9]} 27...
Qa8 {[%clk 0:00:15.6]} 28. Qxa8 {[%clk 0:00:59.9]} 28... Rxa8 {[%clk 0:00:17.5]}
29. Rd7 {[%clk 0:01:00.6]} 29... c5 {[%clk 0:00:16.1]} 30. f4 {[%clk 0:00:58.5]}
30... a6 {[%clk 0:00:15.8]} 31. h4 {[%clk 0:00:53.5]} 31... b5 {[%clk
0:00:17.2]} 32. Bd5 {[%clk 0:00:53.9]} 32... Rc8 {[%clk 0:00:17.8]} 33. Kf3
{[%clk 0:00:53.6]} 33... c4 {[%clk 0:00:19.1]} 34. Ke3 {[%clk 0:00:54.8]} 34...
c3 {[%clk 0:00:17.8]} 35. Bb3 {[%clk 0:00:33.8]} 35... c2 {[%clk 0:00:17.6]} 36.
Bxc2 {[%clk 0:00:34]} 36... Rxc2 {[%clk 0:00:19.5]} 37. f5 {[%clk 0:00:32.3]}
37... Rxa2 {[%clk 0:00:11.4]} 38. fxg6 {[%clk 0:00:30.9]} 38... hxg6 {[%clk
0:00:12.5]} 39. g4 {[%clk 0:00:32.2]} 39... Ra4 {[%clk 0:00:11.4]} 40. Kf3
{[%clk 0:00:32.1]} 40... b4 {[%clk 0:00:11.2]} 41. h5 {[%clk 0:00:31.9]} 41...
gxh5 {[%clk 0:00:11.7]} 42. Kf4 {[%clk 0:00:32.5]} 42... b3+ {[%clk 0:00:12]}
43. Kf5 {[%clk 0:00:33.9]} 43... Rxg4 {[%clk 0:00:13.1]} 44. Rb7 {[%clk
0:00:29.4]} 44... Rg3 {[%clk 0:00:13.1]} 45. Kxf6 {[%clk 0:00:24.6]} 45... a5
{[%clk 0:00:11.7]} 46. Ra7 {[%clk 0:00:21]} 46... b2 {[%clk 0:00:09.8]} 47. Rb7
{[%clk 0:00:22.2]} 47... Rg2 {[%clk 0:00:09.4]} 48. Kf5 {[%clk 0:00:20.8]} 48...
a4 {[%clk 0:00:09.7]} 49. Kf4 {[%clk 0:00:22.2]} 49... a3 {[%clk 0:00:10.9]} 50.
Kf3 {[%clk 0:00:24.1]} 50... Rg7 {[%clk 0:00:11.7]} 51. Rb8+ {[%clk 0:00:25.3]}
51... Rg8 {[%clk 0:00:13.2]} 52. Rb3 {[%clk 0:00:27.2]} 52... a2 {[%clk
0:00:13.4]} 53. Rxb2 {[%clk 0:00:28.7]} 53... a1=Q {[%clk 0:00:14.6]} 54. Rb7
{[%clk 0:00:30.6]} 54... Qh1+ {[%clk 0:00:15.1]} 0-1

[Event "*** MasterClass Titled Tuesday Blitz"]
[Site "Chess.com"]
[Date "2017.09.05"]
[Round "3"]
[White "Fandorine"]
[Black "asms9699"]
[Result "1-0"]
[WhiteElo "2673"]
[BlackElo "2413"]
[TimeControl "180+2"]
[EndTime "13:43:48 PDT"]
[Termination "Fandorine won by resignation"]

1. e4 {[%clk 0:02:53.5]} 1... e6 {[%clk 0:03:00.6]} 2. d4 {[%clk 0:02:51.4]}
2... d5 {[%clk 0:03:01.6]} 3. Bd3 {[%clk 0:02:53.6]} 3... c5 {[%clk 0:03:01.3]}
4. exd5 {[%clk 0:02:53.5]} 4... exd5 {[%clk 0:02:59.9]} 5. Nf3 {[%clk
0:02:54.9]} 5... Nc6 {[%clk 0:03:00.9]} 6. O-O {[%clk 0:02:55.2]} 6... Nf6
{[%clk 0:03:00.6]} 7. Re1+ {[%clk 0:02:55.3]} 7... Be7 {[%clk 0:03:01.4]} 8.
dxc5 {[%clk 0:02:56.8]} 8... O-O {[%clk 0:03:02.3]} 9. Bg5 {[%clk 0:02:56.9]}
9... h6 {[%clk 0:03:02.7]} 10. Bh4 {[%clk 0:02:56.3]} 10... Bg4 {[%clk
0:02:52.1]} 11. h3 {[%clk 0:02:53.2]} 11... Bh5 {[%clk 0:02:46.1]} 12. Nbd2
{[%clk 0:02:53.7]} 12... Bxc5 {[%clk 0:02:38.1]} 13. c3 {[%clk 0:02:55]} 13...
Bd6 {[%clk 0:02:21.2]} 14. Qa4 {[%clk 0:02:50.9]} 14... Bg6 {[%clk 0:01:50.5]}
15. Bxf6 {[%clk 0:02:05]} 15... Qxf6 {[%clk 0:01:45]} 16. Qc2 {[%clk 0:01:39.2]}
16... d4 {[%clk 0:01:20.6]} 17. Bxg6 {[%clk 0:01:37.7]} 17... fxg6 {[%clk
0:00:48.4]} 18. Ne4 {[%clk 0:01:36.9]} 18... Qf4 {[%clk 0:00:30.8]} 19. Nxd6
{[%clk 0:01:36.2]} 19... Qxd6 {[%clk 0:00:30.9]} 20. Rad1 {[%clk 0:01:33]} 20...
Rf4 {[%clk 0:00:21.4]} 21. cxd4 {[%clk 0:00:58.1]} 21... Kh7 {[%clk 0:00:16.1]}
22. d5 {[%clk 0:00:55.1]} 22... Nb4 {[%clk 0:00:17.1]} 23. Qb3 {[%clk
0:00:53.4]} 23... Raf8 {[%clk 0:00:16.9]} 24. a3 {[%clk 0:00:38.2]} 24... Na6
{[%clk 0:00:17.8]} 25. Qxb7 {[%clk 0:00:37.8]} 25... Rb8 {[%clk 0:00:18.7]} 26.
Qc6 {[%clk 0:00:37.1]} 26... Qd8 {[%clk 0:00:14.1]} 27. Qxa6 {[%clk 0:00:37.3]}
27... Rxb2 {[%clk 0:00:14.1]} 28. Qd3 {[%clk 0:00:32.5]} 28... Qb8 {[%clk
0:00:12.1]} 29. d6 {[%clk 0:00:31.3]} 29... Rb3 {[%clk 0:00:13.1]} 30. Qxb3
{[%clk 0:00:21.3]} 30... Qxb3 {[%clk 0:00:13.3]} 31. d7 {[%clk 0:00:23]} 31...
Rf8 {[%clk 0:00:13.6]} 32. d8=Q {[%clk 0:00:23.4]} 32... Rxd8 {[%clk 0:00:14.6]}
33. Rxd8 {[%clk 0:00:24.9]} 33... Qxa3 {[%clk 0:00:16.5]} 34. Rdd1 {[%clk
0:00:17.3]} 34... g5 {[%clk 0:00:16.7]} 35. Ra1 {[%clk 0:00:18.3]} 35... Qc5
{[%clk 0:00:17.6]} 36. Ra4 {[%clk 0:00:16.1]} 36... h5 {[%clk 0:00:15.9]} 37.
Rea1 {[%clk 0:00:16.6]} 37... Kh6 {[%clk 0:00:16.2]} 38. Ra5 {[%clk 0:00:16.4]}
38... Qc3 {[%clk 0:00:16.3]} 39. Nxg5 {[%clk 0:00:17.3]} 39... Qd4 {[%clk
0:00:14.5]} 40. g3 {[%clk 0:00:13.5]} 40... h4 {[%clk 0:00:10.5]} 41. Nf3 {[%clk
0:00:14.3]} 41... Qc3 {[%clk 0:00:09.9]} 42. Nxh4 {[%clk 0:00:14.5]} 42... Qc8
{[%clk 0:00:11]} 43. Nf5+ {[%clk 0:00:11.5]} 43... Kh7 {[%clk 0:00:12]} 44. h4
{[%clk 0:00:12]} 44... Qe6 {[%clk 0:00:11.5]} 45. Ne3 {[%clk 0:00:12.2]} 45...
Qf6 {[%clk 0:00:12]} 46. Rxa7 {[%clk 0:00:13]} 46... Qf3 {[%clk 0:00:13.1]} 47.
R7a5 {[%clk 0:00:13.1]} 47... Kh6 {[%clk 0:00:14.3]} 48. Rg5 {[%clk 0:00:13.2]}
48... Kh7 {[%clk 0:00:15.5]} 49. Ra7 {[%clk 0:00:13.5]} 49... Kh6 {[%clk
0:00:15]} 50. Nf5+ {[%clk 0:00:13.7]} 1-0

[Event "*** MasterClass Titled Tuesday Blitz"]
[Site "Chess.com"]
[Date "2017.09.05"]
[Round "3"]
[White "dolynachess"]
[Black "fastestmindalive"]
[Result "0-1"]
[WhiteElo "2402"]
[BlackElo "2620"]
[TimeControl "180+2"]
[EndTime "13:43:49 PDT"]
[Termination "fastestmindalive won by resignation"]

1. c4 {[%clk 0:03:01.9]} 1... Nf6 {[%clk 0:02:58.8]} 2. Nc3 {[%clk 0:02:55.2]}
2... e5 {[%clk 0:02:51.2]} 3. Nf3 {[%clk 0:02:55.2]} 3... d6 {[%clk 0:02:52]} 4.
g3 {[%clk 0:02:51.2]} 4... g6 {[%clk 0:02:52.6]} 5. Bg2 {[%clk 0:02:52.7]} 5...
Bg7 {[%clk 0:02:54.2]} 6. O-O {[%clk 0:02:55]} 6... O-O {[%clk 0:02:55.7]} 7. d3
{[%clk 0:02:56.5]} 7... Nbd7 {[%clk 0:02:56]} 8. Bg5 {[%clk 0:02:56.7]} 8... h6
{[%clk 0:02:57.4]} 9. Bxf6 {[%clk 0:02:58.2]} 9... Nxf6 {[%clk 0:02:59.3]} 10.
Nd2 {[%clk 0:02:58.7]} 10... c6 {[%clk 0:02:52.1]} 11. e4 {[%clk 0:02:51.7]}
11... Kh7 {[%clk 0:02:49.9]} 12. b4 {[%clk 0:02:50.8]} 12... Be6 {[%clk
0:02:50.7]} 13. Qb3 {[%clk 0:02:43]} 13... Qd7 {[%clk 0:02:47.2]} 14. b5 {[%clk
0:02:36.1]} 14... Bh3 {[%clk 0:02:45.5]} 15. a4 {[%clk 0:02:27.1]} 15... Qg4
{[%clk 0:02:44.2]} 16. a5 {[%clk 0:02:17.2]} 16... c5 {[%clk 0:02:31.1]} 17. f3
{[%clk 0:02:10.1]} 17... Qh5 {[%clk 0:02:31.4]} 18. Bxh3 {[%clk 0:02:02.7]}
18... Qxh3 {[%clk 0:02:32.1]} 19. Qd1 {[%clk 0:01:55.8]} 19... h5 {[%clk
0:02:23.2]} 20. Qe2 {[%clk 0:01:53.3]} 20... Bh6 {[%clk 0:02:23.5]} 21. Ra2
{[%clk 0:01:48.2]} 21... Kg7 {[%clk 0:02:21.4]} 22. Rf2 {[%clk 0:01:38.5]} 22...
Rh8 {[%clk 0:02:21.1]} 23. Nf1 {[%clk 0:01:38.4]} 23... Ne8 {[%clk 0:02:17]} 24.
Nd5 {[%clk 0:01:37]} 24... Bg5 {[%clk 0:02:11]} 25. f4 {[%clk 0:01:32.6]} 25...
exf4 {[%clk 0:02:11.9]} 26. gxf4 {[%clk 0:01:33.2]} 26... Bh4 {[%clk 0:02:12.6]}
27. Rg2 {[%clk 0:01:31]} 27... Nf6 {[%clk 0:02:13.2]} 28. Nde3 {[%clk
0:01:09.6]} 28... Kh7 {[%clk 0:02:06.4]} 29. f5 {[%clk 0:00:34.5]} 29... g5
{[%clk 0:02:06.4]} 30. Ra3 {[%clk 0:00:28.4]} 30... g4 {[%clk 0:02:04.8]} 31.
Nd5 {[%clk 0:00:27]} 31... Nxd5 {[%clk 0:01:54.7]} 32. cxd5 {[%clk 0:00:27]}
32... Bf6 {[%clk 0:01:53.9]} 33. Ng3 {[%clk 0:00:16.9]} 33... Bd4+ {[%clk
0:01:47.3]} 34. Kh1 {[%clk 0:00:18]} 34... Kg7 {[%clk 0:01:46.5]} 35. Ra2 {[%clk
0:00:16.4]} 35... f6 {[%clk 0:01:40]} 36. Qf1 {[%clk 0:00:16.9]} 36... Kf7
{[%clk 0:01:39.4]} 37. Ne2 {[%clk 0:00:17.9]} 37... Qxd3 {[%clk 0:01:38.5]} 38.
Rg3 {[%clk 0:00:16.8]} 38... Qxe4+ {[%clk 0:01:39.3]} 39. Qg2 {[%clk 0:00:17.3]}
39... Qxg2+ {[%clk 0:01:35.4]} 40. Kxg2 {[%clk 0:00:19.2]} 40... Be5 {[%clk
0:01:35.6]} 41. Rd3 {[%clk 0:00:19.6]} 41... h4 {[%clk 0:01:36.1]} 42. Ra4
{[%clk 0:00:17.2]} 42... Rag8 {[%clk 0:01:36.1]} 43. Re3 {[%clk 0:00:18.6]}
43... Rh5 {[%clk 0:01:36.8]} 44. Ree4 {[%clk 0:00:19]} 44... h3+ {[%clk
0:01:35.7]} 45. Kg1 {[%clk 0:00:18.7]} 45... Rxf5 {[%clk 0:01:35.5]} 46. Rxg4
{[%clk 0:00:19.3]} 46... Rfg5 {[%clk 0:01:34.4]} 47. Rxg5 {[%clk 0:00:18.6]}
47... Rxg5+ {[%clk 0:01:36.3]} 48. Kf1 {[%clk 0:00:19.5]} 48... Rf5+ {[%clk
0:01:20.8]} 49. Kg1 {[%clk 0:00:17.1]} 49... Rg5+ {[%clk 0:01:18.9]} 50. Kf1
{[%clk 0:00:17.7]} 50... Kg6 {[%clk 0:01:07.4]} 51. Rh4 {[%clk 0:00:18.6]} 51...
Rh5 {[%clk 0:01:06.8]} 52. Rg4+ {[%clk 0:00:19.4]} 52... Rg5 {[%clk 0:01:07.7]}
53. Rh4 {[%clk 0:00:20.7]} 53... Bxh2 {[%clk 0:01:08.1]} 54. Rxh3 {[%clk
0:00:21]} 54... Rh5 {[%clk 0:01:07.6]} 55. Rxh5 {[%clk 0:00:11.3]} 55... Kxh5
{[%clk 0:01:08.4]} 56. Nc3 {[%clk 0:00:08.4]} 56... Be5 {[%clk 0:01:09.2]} 57.
Na4 {[%clk 0:00:09.3]} 57... Bd4 {[%clk 0:01:07.4]} 58. Ke2 {[%clk 0:00:10.1]}
58... c4 {[%clk 0:01:03.6]} 59. Kf3 {[%clk 0:00:10]} 59... f5 {[%clk 0:01:04.2]}
60. Kf4 {[%clk 0:00:10.9]} 60... Kg6 {[%clk 0:01:05.5]} 61. a6 {[%clk
0:00:11.4]} 61... bxa6 {[%clk 0:01:05.1]} 62. bxa6 {[%clk 0:00:12.9]} 62... Kf6
{[%clk 0:01:06.3]} 63. Kf3 {[%clk 0:00:14.2]} 63... Ke5 {[%clk 0:01:07.5]} 64.
Ke2 {[%clk 0:00:15.9]} 64... Ke4 {[%clk 0:01:08.5]} 0-1